bitfinex/quotes_ETHUSD_20250720
["timestamp","ask_amount","ask_price","bid_price","bid_amount"]
[1752974555228,1.09767494,3624.9,3624.1,3.63750768]
[1752974555229,0.8218,3624.9,3624.7,0.1376]
[1752974555442,3.20754783,3624.8,3624.7,0.1376]
[1752974555593,0.4487,3624.8,3624.7,0.1376]
[1752974555926,0.8218,3625.8,3624.7,6.56151819]
[1752974556087,1.2705,3625.8,3624.7,3.77510768]
[1752974556289,2.76027679,3625.5,3625.4,0.1376]
[1752974556492,3.20897679,3625.5,3625.4,0.1376]
[1752974556731,2.75831632,3625.4,3625.3,4.603]
[1752974557029,2.75831632,3625.4,3624.4,4.603]
[1752974557030,2.75854459,3625.1,3624.4,4.603]
[1752974557200,0.1376,3624.9,3624.3,0.1376]
[1752974557605,2.75907736,3624.4,3624.3,0.1376]
[1752974557813,3.20777736,3624.4,3624.3,0.1376]
[1752974558652,4.03157736,3624.4,3624.3,0.1376]
[1752974558802,2.08915412,3624.4,3623.8,0.1376]
[1752974559007,2.75938189,3624.0,3623.9,4.599]
[1752974559819,2.75933116,3624.1,3623.9,4.599]
[1752974560236,2.75938189,3624.0,3623.9,4.599]
[1752974560435,0.9614,3624.4,3623.9,4.599]
[1752974560636,2.75938189,3624.0,3623.9,3.63750768]
[1752974560846,2.75938189,3624.0,3623.3,6.39739361]
[1752974561010,2.75948215,3623.9,3623.4,1.62672585]
[1752974561203,0.9614,3624.4,3623.8,0.1376]
[1752974561525,0.9614,3624.4,3623.2,6.618]
[1752974561526,2.75945804,3623.9,3622.6,0.766]
[1752974561725,2.75981111,3623.5,3622.8,2.76027026]
[1752974561937,0.4487,3623.4,3623.2,4.592]
[1752974562241,0.4487,3623.8,3623.2,4.592]
[1752974562404,3.20855423,3623.4,3623.1,4.632]
[1752974562605,0.4487,3623.3,3623.1,0.04]
[1752974562843,3.20869116,3623.2,3623.1,0.04]
[1752974564222,4.03249116,3623.2,3623.1,0.04]
[1752974564550,4.71172485,3623.2,3623.1,0.04]
[1752974569265,5.0217,3623.7,3623.1,0.04]
[1752974569781,5.0217,3623.7,3623.4,2.75978281]
[1752974569782,0.4487,3623.7,3623.4,2.75978281]
[1752974570070,0.8082,3624.3,3623.3,3.63750768]
[1752974570247,0.8082,3624.3,3623.8,2.7594837]
[1752974570646,0.4597,3624.2,3623.6,2.75966184]
[1752974570882,0.4597,3624.2,3623.4,3.40627881]
[1752974571176,0.4597,3624.2,3623.7,2.75960868]
[1752974571348,0.4597,3624.2,3623.6,2.75966274]
[1752974571666,0.4597,3624.2,3623.8,0.1376]
[1752974571875,3.21906326,3624.1,3623.8,0.1376]
[1752974572081,0.8082,3624.3,3623.8,0.1376]
[1752974572282,0.4597,3624.0,3623.8,0.1376]
[1752974572446,0.8082,3624.3,3623.8,0.1376]
[1752974572649,0.4597,3624.2,3623.8,0.1376]
[1752974572832,0.4597,3624.2,3623.2,4.575]
[1752974572833,2.75930575,3624.1,3623.2,2.7599609]
[1752974573049,2.7594844,3623.9,3623.4,0.1376]
[1752974573584,0.4597,3623.8,3623.4,0.1376]
[1752974574077,0.8082,3624.3,3623.6,2.75968649]
[1752974574260,0.8082,3624.7,3623.7,4.7281961]
[1752974574455,0.1376,3624.8,3624.3,2.75909693]
[1752974574770,0.8082,3625.1,3624.6,0.1376]
[1752974574942,4.02644981,3625.1,3624.6,0.1376]
[1752974575149,0.8082,3625.1,3624.7,2.75883523]
[1752974575369,2.75831632,3625.4,3624.7,2.75883828]
[1752974575565,2.89591632,3625.4,3624.8,0.1376]
[1752974575850,1.2699,3625.5,3624.8,1.40473023]
[1752974575851,0.002,3625.5,3624.8,1.40473023]
[1752974576075,0.002,3625.5,3625.4,0.1376]
[1752974576301,0.002,3625.5,3625.4,2.89591632]
[1752974576689,0.002,3625.5,3625.4,0.1376]
[1752974577564,2.76024024,3625.5,3625.4,0.1376]
[1752974578262,0.002,3625.5,3625.4,0.1376]
[1752974578989,3.21994024,3625.5,3625.4,0.1376]
[1752974579293,2.75839068,3625.4,3624.9,0.1376]
[1752974579454,2.75856674,3625.1,3624.9,0.1376]
[1752974579651,2.75862068,3625.0,3624.9,0.1376]
[1752974579904,3.52305641,3624.7,3624.0,4.552]
[1752974580127,0.4597,3624.6,3624.2,0.1376]
[1752974580300,2.75925332,3624.2,3623.9,0.21013362]
[1752974580494,2.7593174,3624.1,3623.8,0.1376]
[1752974580693,2.75945804,3623.9,3623.8,0.1376]
[1752974580894,2.75945804,3623.9,3623.1,0.25124371]
[1752974580895,0.4597,3624.0,3623.1,0.04]
[1752974581209,2.75880853,3624.8,3623.1,0.04]
[1752974581210,0.7642,3624.8,3623.7,3.63750768]
[1752974581409,0.7642,3624.8,3623.7,4.44370768]
[1752974581609,0.7642,3624.8,3623.8,4.571]
[1752974581610,2.75921786,3624.3,3623.8,4.571]
[1752974582384,2.75905164,3624.5,3623.9,4.57]
[1752974582583,0.4597,3624.7,3624.0,4.569]
[1752974582809,2.75920112,3624.3,3623.7,0.8062]
[1752974583026,2.75944038,3624.0,3623.8,4.57]
[1752974583307,0.4597,3624.5,3623.8,4.57]
[1752974583530,0.7642,3624.8,3623.6,0.5]
[1752974583865,2.75910053,3624.4,3623.8,4.57]
[1752974584187,2.75901221,3624.5,3623.8,4.57]
[1752974584430,2.75939249,3624.0,3623.7,0.44134687]
[1752974584729,2.75951094,3623.9,3623.6,4.569]
[1752974585025,0.7642,3624.8,3623.3,0.8062]
[1752974585221,2.75939861,3624.0,3623.4,4.569]
[1752974585526,2.7590767,3624.5,3623.8,2.75949197]
[1752974585684,2.758849,3624.7,3623.7,2.75955248]
[1752974585886,2.75906386,3624.5,3623.8,2.75951894]
[1752974586088,2.75908834,3624.4,3623.7,2.75958619]
[1752974586499,2.75901703,3624.5,3623.8,2.75952965]
[1752974586723,2.75908864,3624.4,3623.8,3.31421103]
[1752974586888,1.2239,3624.8,3623.8,3.31420246]
[1752974587089,2.75884995,3624.7,3623.8,3.31420246]
[1752974587388,2.75894245,3624.6,3623.9,2.75940557]
[1752974587722,2.75901013,3624.5,3624.0,4.561]
[1752974587894,2.75909058,3624.4,3624.0,4.561]
[1752974588311,2.75923042,3624.2,3624.0,4.559]
[1752974588626,3.21880118,3624.4,3624.0,4.559]
[1752974588924,2.75910118,3624.4,3623.8,2.75953282]
[1752974589127,2.7591558,3624.3,3623.9,4.555]
[1752974589493,2.7591558,3624.3,3623.7,2.75959185]
[1752974589727,2.7591558,3624.3,3623.8,4.553]
[1752974589898,2.75923323,3624.2,3623.8,4.553]
[1752974590149,2.75917683,3624.3,3623.8,4.553]
[1752974590301,2.75912511,3624.4,3623.8,7.31253004]
[1752974590699,2.75912511,3624.4,3623.8,4.553]
[1752974590904,2.75912511,3624.4,3623.9,4.549]
[1752974591307,2.75912511,3624.4,3624.1,0.1376]
[1752974591492,1.3615,3624.8,3624.1,0.1376]
[1752974591689,2.7591363,3624.4,3624.1,0.1376]
[1752974591992,2.75907891,3624.4,3624.1,0.1376]
[1752974592317,2.22891619,3624.8,3624.1,0.1376]
[1752974592487,2.75916693,3624.3,3624.1,0.1376]
[1752974592692,2.75922962,3624.2,3624.1,0.1376]
[1752974593733,3.21892962,3624.2,3624.1,0.1376]
[1752974593929,2.7594838,3623.9,3623.8,4.539]
[1752974594240,2.7594838,3623.9,3623.7,4.539]
[1752974594241,2.75959309,3623.8,3623.7,4.539]
[1752974594540,2.75961034,3623.7,3623.6,0.1376]
[1752974597449,2.75955504,3623.8,3623.6,0.1376]
[1752974597739,0.1376,3624.2,3623.6,0.60436]
[1752974597912,2.75923255,3624.2,3623.8,0.1376]
[1752974598120,2.75931982,3624.1,3623.8,0.1376]
[1752974598315,2.75939828,3624.0,3623.8,0.1376]
[1752974598543,3.21915804,3623.9,3623.8,0.1376]
[1752974598925,0.4597,3623.9,3622.7,0.4461]
[1752974599252,0.4597,3623.9,3621.8,2.76105786]
[1752974599253,2.75968649,3623.6,3623.5,0.1376]
[1752974599407,3.21938649,3623.6,3623.5,0.1376]
[1752974599603,0.1376,3623.9,3623.5,0.1376]
[1752974599850,2.75909241,3624.4,3623.8,0.1376]
[1752974600160,2.75910104,3624.4,3623.8,2.89712895]
[1752974600354,2.75917529,3624.3,3623.8,0.1376]
[1752974600505,3.52250564,3624.5,3623.8,0.1376]
[1752974600506,2.75924227,3624.2,3623.8,0.1376]
[1752974601012,0.7635,3624.5,3623.8,0.1376]
[1752974601217,3.35625357,3624.6,3623.8,4.31095231]
[1752974601409,3.35625357,3624.6,3624.1,0.1376]
[1752974601613,0.5973,3624.6,3624.1,0.1376]
[1752974602215,3.35625206,3624.6,3624.1,0.1376]
[1752974602714,2.89655206,3624.6,3624.1,0.1376]
[1752974602934,0.1376,3624.6,3624.1,5.36324044]
[1752974603117,0.002,3624.9,3624.1,5.36324044]
[1752974603118,0.002,3624.9,3624.4,2.75901247]
[1752974603346,0.002,3624.9,3624.2,4.518]
[1752974603347,2.75883257,3624.8,3624.2,4.518]
[1752974603527,0.002,3624.9,3624.3,4.519]
[1752974603746,2.75877289,3624.8,3624.3,4.519]
[1752974604052,2.75877289,3624.8,3623.5,4.78079528]
[1752974604053,2.75928449,3624.2,3623.5,4.78079528]
[1752974604224,2.7594373,3624.0,3623.6,4.518]
[1752974604555,2.75946501,3623.9,3623.6,4.518]
[1752974604763,0.4299,3623.9,3623.4,0.816]
[1752974605048,0.4299,3623.8,3623.2,4.78079528]
[1752974605212,0.4299,3623.8,3623.1,0.041]
[1752974605409,2.75999116,3623.2,3623.1,0.041]
[1752974606163,2.75999116,3623.2,3622.3,0.001]
[1752974606164,2.7606007,3622.4,3622.3,0.001]
[1752974606533,1.46298954,3623.2,3622.3,0.001]
[1752974606534,1.89288954,3623.2,3622.3,0.001]
[1752974606736,2.76019975,3623.0,3622.5,4.78079528]
[1752974606976,3.54880238,3623.6,3622.5,4.78079528]
[1752974607158,2.75985742,3623.4,3622.7,2.76036983]
[1752974607356,2.75978056,3623.5,3622.8,7.28325959]
[1752974607558,0.4299,3623.7,3622.5,5.24359528]
[1752974607559,2.75962849,3623.7,3623.0,7.5408834]
[1752974607736,2.75962849,3623.7,3622.4,0.816]
[1752974607737,3.38978219,3623.7,3622.4,0.816]
[1752974607932,3.38978219,3623.7,3622.3,0.001]
[1752974607933,2.76052449,3622.5,3622.3,0.001]
[1752974608159,2.7606007,3622.4,3622.3,0.001]
[1752974608674,3.1905007,3622.4,3622.3,0.001]
[1752974608876,0.7819,3623.0,3622.3,0.001]
[1752974608877,2.76052459,3622.5,3622.3,0.001]
[1752974609082,0.4299,3622.4,3622.3,0.001]
[1752974609378,2.7606007,3622.4,3622.3,0.001]
[1752974609535,3.74254088,3622.5,3622.3,0.001]
[1752974609732,2.7606007,3622.4,3622.3,0.001]
[1752974610136,0.4299,3622.4,3622.3,0.001]
[1752974610770,2.76057991,3622.5,3622.3,0.001]
[1752974611174,0.4299,3622.4,3622.3,0.001]
[1752974611734,3.1905007,3622.4,3622.3,0.001]
[1752974611979,3.7855976,3622.4,3622.3,0.001]
[1752974613185,0.4299,3622.4,3622.3,0.001]
[1752974614196,3.1905007,3622.4,3622.3,0.001]
[1752974614798,2.76028607,3622.9,3622.3,0.001]
[1752974614945,0.1376,3623.2,3622.3,0.9202]
[1752974615152,2.7606007,3622.4,3622.3,0.001]
[1752974615463,2.7605454,3622.5,3622.0,0.1376]
[1752974615945,2.76065159,3622.4,3622.0,0.1376]
[1752974617286,0.1376,3622.7,3622.0,0.1376]
[1752974617444,2.76030471,3622.8,3622.5,0.1376]
[1752974617648,2.76038477,3622.7,3622.5,0.1376]
[1752974617868,2.76032414,3622.8,3622.5,0.1376]
[1752974618070,2.76041856,3622.7,3622.5,0.1376]
[1752974618690,1.03524566,3623.1,3622.2,4.512]
[1752974618691,2.76067591,3622.4,3622.2,4.512]
[1752974618853,2.76065627,3622.4,3622.2,4.6496]
[1752974619048,2.76067691,3622.3,3622.2,4.6496]
[1752974619280,0.1376,3622.9,3622.3,2.76065254]
[1752974619479,4.511,3623.1,3622.2,4.6496]
[1752974619669,2.76047645,3622.6,3622.2,4.512]
[1752974619863,2.76035629,3622.8,3622.6,0.1376]
[1752974620780,2.76037209,3622.7,3622.6,0.1376]
[1752974621588,0.4299,3623.0,3622.6,0.1376]
[1752974621589,2.76031974,3622.8,3622.6,0.1376]
[1752974621791,2.76022014,3622.9,3622.6,0.1376]
[1752974621970,0.4299,3623.0,3622.6,0.1376]
[1752974621971,2.76018955,3623.0,3622.6,0.1376]
[1752974622166,2.76030559,3622.8,3622.6,0.1376]
[1752974622816,2.76034123,3622.8,3622.3,4.501]
[1752974623018,2.75992393,3623.3,3622.5,2.76052299]
[1752974623221,7.26092867,3623.3,3622.5,2.78812823]
[1752974623515,7.26092867,3623.3,3622.5,2.76052299]
[1752974623715,2.76013709,3623.1,3622.5,2.76052299]
[1752974623925,2.76013709,3623.1,3622.4,3.53006841]
[1752974624075,2.76013709,3623.1,3622.4,5.25403467]
[1752974624276,2.76001004,3623.2,3622.7,4.78079528]
[1752974624496,2.75961034,3623.7,3622.8,7.72005473]
[1752974624779,0.04,3623.9,3622.8,4.9598]
[1752974624978,2.75988744,3623.4,3622.8,4.9598]
[1752974625204,2.75988744,3623.4,3622.8,9.24624229]
[1752974625379,2.75988744,3623.4,3622.8,6.48594732]
[1752974625611,0.04,3623.9,3622.9,0.02760219]
[1752974625810,2.75953419,3623.8,3623.1,2.76003318]
[1752974626203,2.7596367,3623.7,3623.1,2.76003318]
[1752974627006,0.04,3623.9,3623.0,0.7695]
[1752974627325,2.75981056,3623.5,3623.0,0.7695]
[1752974628510,2.75969121,3623.6,3623.0,3.52962485]
[1752974628724,2.75978071,3623.5,3623.0,0.7695]
[1752974628882,2.75971271,3623.6,3623.0,5.28530688]
[1752974629421,2.75968737,3623.6,3623.0,5.28530688]
[1752974629578,2.75968737,3623.6,3623.0,2.52518121]
[1752974629983,2.75978437,3623.5,3623.0,2.52518121]
[1752974630304,2.75989089,3623.4,3623.1,4.482]
[1752974630913,2.75995849,3623.3,3623.1,4.482]
[1752974631078,3.19929116,3623.2,3623.1,4.48]
[1752974631283,3.19929116,3623.2,3622.6,0.7892]
[1752974631284,2.76017382,3623.0,3622.8,4.48]
[1752974631580,2.76037209,3622.7,3622.4,4.78079528]
[1752974631795,2.76032754,3622.8,3622.5,4.48]
[1752974632025,2.7604226,3622.7,3622.5,4.48]
[1752974632183,2.76044829,3622.6,3622.5,4.48]
[1752974632915,2.76044829,3622.6,3622.5,0.1376]
[1752974633121,2.76044829,3622.6,3622.5,4.6136]
[1752974633314,3.19974829,3622.6,3622.5,4.6136]
[1752974633874,2.76067691,3622.3,3622.2,0.1376]
[1752974634081,2.76063074,3622.4,3622.2,4.6126]
[1752974634283,2.76067691,3622.3,3622.2,4.6126]
[1752974634522,2.76067691,3622.3,3622.2,0.1376]
[1752974634720,2.76067691,3622.3,3622.2,4.6126]
[1752974635420,2.76067691,3622.3,3622.2,0.1376]
[1752974635620,2.76067691,3622.3,3622.2,4.6096]
[1752974636016,2.76067691,3622.3,3622.2,0.1376]
[1752974636317,2.76060257,3622.4,3622.2,4.6086]
[1752974637126,2.76067691,3622.3,3622.2,0.1376]
[1752974637331,3.19992652,3622.4,3622.2,0.1376]
[1752974637530,2.76067691,3622.3,3622.2,0.1376]
[1752974638393,3.19990905,3622.4,3622.2,0.1376]
[1752974638699,0.4393,3623.2,3622.3,4.464]
[1752974638900,2.76006734,3623.1,3622.7,0.1376]
[1752974639122,3.19936734,3623.1,3622.7,0.1376]
[1752974639314,2.76018737,3623.0,3622.7,0.1376]
[1752974639934,0.954,3623.3,3622.7,0.1376]
[1752974639935,0.1376,3623.3,3622.7,0.1376]
[1752974640123,2.75970422,3623.6,3622.9,4.78079528]
[1752974640435,2.75970422,3623.6,3622.9,9.24579528]
[1752974640636,0.4393,3623.3,3622.1,0.7659]
[1752974640837,2.76053626,3622.5,3622.1,0.7659]
[1752974641212,0.4393,3622.4,3622.1,0.7659]
[1752974641609,2.76053626,3622.5,3622.1,0.7659]
[1752974641846,2.76038386,3622.7,3622.1,0.7659]
[1752974642148,4.465,3622.8,3622.1,0.7659]
[1752974642149,7.66459803,3622.8,3622.1,0.7659]
[1752974642325,2.76051277,3622.6,3622.1,0.7659]
[1752974642527,2.76053904,3622.5,3622.1,0.7659]
[1752974642710,0.4393,3622.5,3622.1,0.7659]
[1752974643041,0.4393,3622.4,3622.0,4.78079528]
[1752974643207,2.76059485,3622.5,3622.0,4.78079528]
[1752974643409,0.4393,3622.4,3622.0,4.78079528]
[1752974643645,0.4393,3622.7,3622.0,4.78079528]
[1752974643944,3.19967235,3622.7,3622.0,7.54164584]
[1752974645434,3.19967235,3622.7,3621.7,0.8132]
[1752974645435,1.48138236,3622.7,3621.7,0.8132]
[1752974645638,0.4393,3622.6,3621.7,0.8132]
[1752974645814,0.4393,3622.6,3621.7,5.2682]
[1752974645815,2.76081677,3622.2,3621.7,5.2682]
[1752974646010,0.4393,3622.5,3621.7,5.2682]
[1752974646338,2.76061966,3622.4,3622.0,4.78079528]
[1752974646524,2.76068595,3622.3,3622.0,4.78079528]
[1752974646898,2.76075971,3622.2,3622.0,4.78079528]
[1752974647103,2.76078194,3622.2,3622.0,4.78079528]
[1752974647304,3.20008194,3622.2,3622.0,4.78079528]
[1752974647515,2.76082935,3622.1,3622.0,4.78079528]
[1752974647710,0.4393,3622.1,3621.6,0.001]
[1752974648042,3.20023045,3622.0,3621.7,4.452]
[1752974648342,0.4393,3621.9,3621.7,4.452]
[1752974648836,2.76075437,3622.2,3621.7,4.452]
[1752974649337,0.4393,3622.1,3621.7,4.452]
[1752974649844,3.2001586,3622.1,3621.7,4.452]
[1752974650005,3.2001586,3622.1,3621.8,0.1376]
[1752974650203,0.4393,3622.1,3621.8,0.1376]
[1752974651444,3.20013889,3622.1,3621.8,0.1376]
[1752974651742,2.76077215,3622.2,3621.8,0.1376]
[1752974651933,2.7609818,3621.9,3621.8,0.1376]
[1752974652107,3.20023719,3622.0,3621.8,0.1376]
[1752974652558,2.76113427,3621.7,3621.6,0.001]
[1752974654547,3.20043427,3621.7,3621.6,0.001]
[1752974654908,3.8103367,3621.7,3621.6,0.001]
[1752974655373,3.8103367,3621.7,3621.6,1e-08]
[1752974655374,9.0619367,3621.7,3621.6,1e-08]
[1752974655655,6.56111551,3621.2,3621.1,0.04]
[1752974655807,2.76189687,3620.7,3620.6,0.001]
[1752974656006,7.21389687,3620.7,3620.6,0.001]
[1752974656238,9.00689429,3620.7,3620.6,0.001]
[1752974657708,4.55489429,3620.7,3620.6,0.001]
[1752974657934,9.00789429,3620.7,3620.6,0.001]
[1752974658258,3.33879687,3620.7,3620.6,0.001]
[1752974658954,4.10339687,3620.7,3620.6,0.001]
[1752974659153,8.55639687,3620.7,3620.6,0.001]
[1752974659656,11.55639687,3620.7,3620.6,0.001]
[1752974661261,12.10639687,3620.7,3620.6,1e-08]
[1752974661413,12.9056116,3620.7,3620.6,1e-08]
[1752974662625,5.4526116,3620.7,3620.6,1e-08]
[1752974662832,8.41879687,3620.7,3620.6,1e-08]
[1752974663682,11.41879687,3620.7,3620.6,1e-08]
[1752974663965,11.96879687,3620.7,3620.6,1e-08]
[1752974664119,7.13137832,3620.2,3620.1,1e-08]
[1752974664320,12.57473517,3620.2,3620.1,1e-08]
[1752974664759,8.01463517,3620.2,3620.1,1e-08]
[1752974664942,12.46863517,3620.2,3620.1,1e-08]
[1752974666974,8.01463517,3620.2,3620.1,1e-08]
[1752974667194,13.01863517,3620.2,3620.1,1e-08]
[1752974667393,0.4439,3620.2,3620.1,0.83050001]
[1752974667684,2.76220515,3620.3,3620.1,0.83050001]
[1752974667891,0.4439,3620.9,3620.1,0.83050001]
[1752974668177,2.76180013,3620.9,3620.4,4.78079528]
[1752974668384,2.76161184,3621.1,3620.4,4.78079528]
[1752974668385,2.76165546,3621.1,3620.4,4.78079528]
[1752974668535,2.76144381,3621.3,3620.4,8.01581797]
[1752974668733,2.76202829,3620.6,3620.1,0.83050001]
[1752974668937,2.76186752,3620.8,3620.1,0.83050001]
[1752974669151,2.76186752,3620.8,3620.1,3.59280649]
[1752974669370,2.76177412,3620.9,3620.1,3.59280649]
[1752974669572,0.4439,3621.2,3620.1,0.83050001]
[1752974669773,0.83808676,3621.1,3620.1,0.83050001]
[1752974669974,2.76227832,3620.2,3620.1,0.83050001]
[1752974670179,2.76227832,3620.2,3620.1,1e-08]
[1752974670380,3.20617832,3620.2,3620.1,1e-08]
[1752974670582,2.76227832,3620.2,3620.1,1e-08]
[1752974671762,3.0,3620.8,3620.1,1e-08]
[1752974671963,0.1376,3620.5,3620.1,1e-08]
[1752974672172,2.76218197,3620.4,3620.1,1e-08]
[1752974672387,2.76227832,3620.2,3620.1,1e-08]
[1752974672596,2.76212573,3620.4,3620.1,1e-08]
[1752974672801,2.76220368,3620.3,3620.1,1e-08]
[1752974672957,2.76227832,3620.2,3620.1,1e-08]
[1752974673158,2.76215092,3620.4,3620.1,1e-08]
[1752974673357,0.1376,3620.5,3620.2,4.454]
[1752974673684,2.76195127,3620.7,3620.3,0.1376]
[1752974673863,0.1376,3621.0,3620.3,0.1376]
[1752974674180,2.76182806,3620.8,3620.3,0.1376]
[1752974674390,2.76184243,3620.8,3620.3,0.1376]
[1752974674686,2.76191459,3620.7,3620.3,0.1376]
[1752974675247,0.1376,3621.0,3620.5,0.7728]
[1752974675491,2.76178958,3620.9,3620.5,0.7728]
[1752974675669,2.76197315,3620.6,3620.5,0.7728]
[1752974675991,2.76212573,3620.4,3620.1,4.45300001]
[1752974676174,2.76227832,3620.2,3620.1,4.45300001]
[1752974676643,2.76224659,3620.3,3620.1,4.45300001]
[1752974676991,2.76227832,3620.2,3620.1,4.45300001]
[1752974677888,3.20617832,3620.2,3620.1,1e-08]
[1752974678186,3.75861956,3620.2,3620.1,1e-08]
[1752974681512,6.75861956,3620.2,3620.1,1e-08]
[1752974681696,7.30861956,3620.2,3620.1,1e-08]
[1752974682217,6.31471956,3620.2,3620.1,1e-08]
[1752974682418,2.76227832,3620.2,3620.1,1e-08]
[1752974683283,3.20617832,3620.2,3620.1,1e-08]
[1752974686223,3.46383555,3620.2,3620.1,1e-08]
[1752974687083,4.01383555,3620.2,3620.1,1e-08]
[1752974687280,4.81643555,3620.2,3620.1,1e-08]
[1752974687477,4.81643555,3620.2,3619.5,1e-08]
[1752974687478,3.31273621,3619.6,3619.5,1e-08]
[1752974687832,11.59233621,3619.6,3619.5,1e-08]
[1752974688027,12.29389344,3619.6,3619.5,1e-08]
[1752974689550,7.84089344,3619.6,3619.5,1e-08]
[1752974689691,11.74389344,3619.6,3619.5,1e-08]
[1752974689873,13.74354785,3619.6,3619.5,1e-08]
[1752974690995,13.74074785,3619.6,3619.5,1e-08]
[1752974691193,2.76273621,3619.6,3619.5,1e-08]
[1752974691580,3.20383621,3619.6,3619.5,1e-08]
[1752974692194,6.75383621,3619.6,3619.5,1e-08]
[1752974692397,7.58253621,3619.6,3619.5,1e-08]
[1752974692854,7.58253621,3619.6,3619.1,0.04]
[1752974692855,6.31304155,3619.2,3619.1,1e-08]
[1752974693031,2.76342332,3618.7,3618.6,0.001]
[1752974693500,2.90102332,3618.7,3618.6,0.001]
[1752974694592,3.89212332,3618.7,3618.6,0.001]
[1752974694781,7.72082332,3618.7,3618.6,0.001]
[1752974694991,9.49087285,3618.7,3618.6,1e-08]
[1752974695697,13.94287285,3618.7,3618.6,1e-08]
[1752974697232,13.39287285,3618.7,3618.6,1e-08]
[1752974697590,13.94287285,3618.7,3618.6,1e-08]
[1752974699730,12.12307285,3618.7,3618.6,1e-08]
[1752974699935,7.35402332,3618.7,3618.6,1e-08]
[1752974700097,0.756,3619.4,3618.6,1e-08]
[1752974700302,0.1376,3618.9,3618.6,0.46440001]
[1752974700516,2.76342332,3618.7,3618.6,1e-08]
[1752974700914,3.75452332,3618.7,3618.6,1e-08]
[1752974701097,4.85160933,3618.7,3618.6,1e-08]
[1752974701300,3.86050933,3618.7,3618.6,1e-08]
[1752974701529,2.76332463,3618.9,3618.6,0.46440001]
[1752974701701,2.76328578,3618.9,3618.6,0.46440001]
[1752974701900,0.1376,3619.0,3618.6,1e-08]
[1752974702203,0.1376,3619.0,3618.7,0.4644]
[1752974702396,2.90082154,3619.0,3618.7,0.4644]
[1752974702629,0.1376,3619.0,3618.7,0.4644]
[1752974703039,2.76296487,3619.4,3618.6,0.13760001]
[1752974703040,2.90069024,3619.2,3618.6,0.13760001]
[1752974703331,2.90069024,3619.2,3618.8,0.4644]
[1752974703925,2.7632706,3618.9,3618.6,0.13760001]
[1752974704229,4.452,3619.3,3618.6,1e-08]
[1752974704548,2.7634033,3618.8,3618.6,1e-08]
[1752974704839,2.76336133,3618.8,3618.6,1e-08]
[1752974705010,0.1376,3619.0,3618.6,0.46440001]
[1752974705209,0.1376,3619.3,3618.7,0.602]
[1752974705524,2.76310101,3619.2,3618.7,0.602]
[1752974705723,2.76331634,3618.9,3618.7,0.1376]
[1752974706041,2.76327131,3618.9,3618.7,0.1376]
[1752974706215,2.90056941,3619.3,3618.7,0.1376]
[1752974706534,2.76304487,3619.2,3618.7,0.1376]
[1752974706735,2.76317504,3619.1,3618.7,0.1376]
[1752974707440,0.59006449,3619.2,3618.7,0.1376]
[1752974707648,2.76312648,3619.1,3618.7,0.1376]
[1752974707823,2.76312648,3619.1,3618.7,0.602]
[1752974708030,2.76312648,3619.1,3618.7,0.1376]
[1752974708601,0.1376,3619.3,3618.7,0.1376]
[1752974708801,2.76304155,3619.2,3618.7,0.1376]
[1752974709027,2.76312105,3619.1,3618.7,0.1376]
[1752974709230,2.76306918,3619.2,3618.7,0.1376]
[1752974709600,1.95801696,3620.2,3618.8,6.05279528]
[1752974710117,2.76289059,3619.4,3618.8,8.81614174]
[1752974710316,0.4411,3619.7,3618.8,0.8076]
[1752974710533,2.76304108,3619.3,3618.8,0.8076]
[1752974710732,2.76310344,3619.2,3618.8,0.8076]
[1752974710900,2.76312036,3619.1,3618.8,0.8076]
[1752974711105,0.4411,3619.7,3618.8,0.8076]
[1752974711445,2.76298456,3619.3,3618.8,5.58839528]
[1752974711643,2.76292088,3619.4,3618.8,5.58839528]
[1752974711843,3.0,3619.9,3618.8,5.58839528]
[1752974711844,2.76284063,3619.5,3618.9,3.22764966]
[1752974712027,2.76297871,3619.3,3618.9,0.4644]
[1752974712345,2.76291513,3619.4,3618.9,0.4644]
[1752974712748,2.76296801,3619.3,3618.9,0.4644]
[1752974712936,3.0,3619.9,3618.8,5.58839528]
[1752974713138,2.76317168,3619.1,3618.9,4.45]
[1752974713313,2.76306337,3619.2,3618.9,4.45]
[1752974713509,2.76299871,3619.3,3618.9,4.45]
[1752974714344,2.76281686,3619.5,3619.0,0.4644]
[1752974714513,5.4411,3620.1,3619.0,0.4644]
[1752974714728,2.76289574,3619.4,3619.0,0.4644]
[1752974715047,0.82034272,3620.0,3618.9,4.45]
[1752974715048,2.76284528,3619.5,3618.9,7.21324737]
[1752974715251,2.76276347,3619.6,3619.0,2.76318903]
[1752974715779,2.76275479,3619.6,3619.0,2.76318036]
[1752974716273,2.76255643,3619.9,3619.3,7.54368671]
[1752974716477,2.76229583,3620.2,3619.4,7.21285987]
[1752974716675,2.76224667,3620.3,3619.8,4.78079528]
[1752974716836,2.76219798,3620.4,3619.8,4.78079528]
[1752974717039,2.76219798,3620.4,3619.9,4.449]
[1752974717279,2.76221588,3620.3,3619.9,4.449]
[1752974717660,2.76228942,3620.2,3619.9,4.449]
[1752974719590,2.76222877,3620.3,3619.9,4.449]
[1752974720091,2.76235463,3620.1,3620.0,4.449]
[1752974720246,0.1376,3620.4,3620.0,4.449]
[1752974720446,3.23382203,3620.4,3620.0,4.449]
[1752974720688,2.76220738,3620.3,3620.0,4.449]
[1752974720865,2.76235463,3620.1,3620.0,4.449]
[1752974721048,2.76235463,3620.1,3619.8,4.91839528]
[1752974721249,2.76231054,3620.2,3619.9,4.448]
[1752974721546,2.76222721,3620.3,3619.9,4.448]
[1752974721983,2.762291,3620.2,3619.9,4.448]
[1752974722286,2.76222862,3620.3,3620.0,0.8163]
[1752974722457,2.76228778,3620.2,3620.0,0.8163]
[1752974722664,2.76235463,3620.1,3620.0,0.8163]
[1752974722882,2.76230925,3620.2,3620.0,0.8163]
[1752974723088,0.002,3620.2,3620.0,0.8163]
[1752974723303,2.76428063,3620.2,3620.0,0.8163]
[1752974723808,0.002,3620.2,3620.0,0.8163]